bitfinex-derivatives/quotes_BTCF0:USTF0_20250330
["timestamp","ask_amount","ask_price","bid_price","bid_amount"]
[1743337537623,0.00128,83171.0,83167.0,0.559689]
[1743337537829,0.0303,83171.0,83168.0,0.0301]
[1743337538015,0.0303,83171.0,83168.0,0.03142]
[1743337539017,0.0303,83171.0,83169.0,0.11652]
[1743337539222,0.0303,83171.0,83170.0,1.5]
[1743337539426,0.0303,83171.0,83170.0,1.50128]
[1743337539626,0.0303,83171.0,83170.0,1.61784]
[1743337541034,0.0306,83187.0,83170.0,1.61784]
[1743337541328,0.3306,83187.0,83182.0,0.3608]
[1743337541627,0.33196,83187.0,83183.0,0.11648]
[1743337541825,0.33196,83187.0,83183.0,0.11776]
[1743337544322,0.0305,83186.0,83183.0,0.11776]
[1743337544522,0.03182,83186.0,83183.0,0.11776]
[1743337544822,0.33182,83186.0,83183.0,0.11776]
[1743337550829,0.0305,83185.0,83183.0,0.11776]
[1743337551025,0.03178,83185.0,83183.0,0.11776]
[1743337551225,0.0314,83184.0,83183.0,0.11776]
[1743337551623,0.36326,83184.0,83183.0,0.11776]
[1743337554934,0.36326,83184.0,83183.0,0.47856]
[1743337557433,0.11068933,83184.0,83183.0,0.49385695]
[1743337557638,0.10932933,83184.0,83183.0,0.49385695]
[1743337558538,0.10932933,83184.0,83183.0,0.77980142]
[1743337560446,0.10932933,83184.0,83183.0,0.76450447]
[1743337561234,0.10932933,83184.0,83183.0,0.50856]
[1743337561547,0.10932933,83184.0,83183.0,0.52403638]
[1743337563038,0.10932933,83184.0,83183.0,0.52643638]
[1743337563445,0.10932933,83184.0,83183.0,0.51096]
[1743337563935,0.10932933,83184.0,83183.0,0.96611323]
[1743337564543,0.10932933,83184.0,83183.0,0.84723323]
[1743337564743,0.10932933,83184.0,83183.0,0.81723323]
[1743337566245,0.10932933,83184.0,83183.0,0.45643323]
[1743337568554,0.11064933,83184.0,83183.0,0.00128]
[1743337569338,0.10932933,83184.0,83183.0,0.00128]
[1743337573041,0.11060933,83184.0,83183.0,0.00128]
[1743337576542,0.11060933,83184.0,83183.0,0.21675156]
[1743337576744,0.11060933,83184.0,83183.0,0.24915156]
[1743337580756,0.11060933,83184.0,83183.0,0.03368]
[1743337581553,0.00128,83184.0,83183.0,0.06368]
[1743337581745,0.0321,83193.0,83183.0,0.09458]
[1743337581946,0.10972933,83188.0,83183.0,0.21362]
[1743337582147,0.10972933,83188.0,83184.0,1.5]
[1743337582347,0.10972933,83188.0,83184.0,1.50128]
[1743337582647,0.10972933,83188.0,83185.0,0.0611]
[1743337582841,0.10972933,83188.0,83185.0,0.06246]
[1743337584247,0.10972933,83188.0,83185.0,0.27793156]
[1743337584248,0.0004,83188.0,83185.0,0.27793156]
[1743337585951,0.0004,83188.0,83187.0,0.3608]
[1743337586152,0.0004,83188.0,83187.0,0.37430938]
[1743337586854,0.0004,83188.0,83187.0,0.01350938]
[1743337587052,0.0004,83188.0,83187.0,0.37430938]
[1743337588163,0.0004,83188.0,83187.0,1.87430938]
[1743337590461,0.0004,83188.0,83187.0,2.1616048]
[1743337591369,0.0004,83188.0,83187.0,2.4072738]
[1743337591570,0.0004,83188.0,83187.0,2.42256486]
[1743337592569,0.0004,83188.0,83187.0,2.4072738]
[1743337594367,0.0004,83188.0,83187.0,2.11997838]
[1743337596767,0.0004,83188.0,83187.0,2.18237838]
[1743337597176,0.0004,83188.0,83187.0,2.30409838]
[1743337602778,0.0004,83188.0,83187.0,2.99942384]
[1743337602979,0.1,83200.0,83187.0,2.96942384]
[1743337603180,0.1,83200.0,83199.0,0.3608]
[1743337603380,0.10132,83200.0,83199.0,0.49888546]
[1743337603581,0.1,83200.0,83199.0,0.49888546]
[1743337603879,0.1,83200.0,83199.0,1.86212]
[1743337604082,0.1,83200.0,83199.0,1.98348]
[1743337604284,0.1,83200.0,83199.0,2.13348]
[1743337604879,0.1,83200.0,83199.0,2.04708]
[1743337605182,0.1,83200.0,83199.0,2.0562532]
[1743337605380,0.1,83200.0,83199.0,1.9348932]
[1743337605579,0.1,83200.0,83199.0,2.0561732]
[1743337606083,0.1,83200.0,83199.0,2.3018422]
[1743337607283,0.1,83200.0,83199.0,2.5413622]
[1743337607585,0.1,83200.0,83199.0,2.6624822]
[1743337609185,0.033,83213.0,83199.0,2.6624822]
[1743337609490,0.0004,83220.0,83200.0,0.245669]
[1743337609681,0.0004,83220.0,83200.0,0.926949]
[1743337609988,0.0004,83220.0,83203.0,1.5]
[1743337610191,0.0004,83220.0,83203.0,1.71128]
[1743337610376,0.0004,83220.0,83203.0,1.7722]
[1743337610987,0.0004,83220.0,83219.0,0.7216]
[1743337611292,0.0004,83220.0,83219.0,0.72296]
[1743337611590,0.0004,83220.0,83219.0,0.8438]
[1743337611777,0.0004,83220.0,83219.0,0.1222]
[1743337611985,0.0004,83220.0,83219.0,0.84244]
[1743337612282,0.0004,83220.0,83219.0,0.84376]
[1743337612482,0.0004,83220.0,83219.0,0.87616]
[1743337612690,0.0004,83220.0,83219.0,0.90926]
[1743337613190,0.0004,83220.0,83219.0,0.92116701]
[1743337613781,0.0004,83220.0,83219.0,0.19956701]
[1743337613982,0.0004,83220.0,83219.0,0.91984701]
[1743337614186,0.0004,83220.0,83219.0,0.92112701]
[1743337614479,0.0004,83220.0,83219.0,0.88790701]
[1743337615191,0.0004,83220.0,83219.0,2.38790701]
[1743337615781,0.0004,83220.0,83219.0,2.42000701]
[1743337617391,0.0004,83220.0,83219.0,2.38790701]
[1743337617783,0.0004,83220.0,83219.0,2.42030701]
[1743337618390,0.0004,83220.0,83219.0,2.66597601]
[1743337618785,0.0004,83220.0,83219.0,2.68134231]
[1743337620189,0.0004,83220.0,83219.0,1.95974231]
[1743337620390,0.0004,83220.0,83219.0,2.68134231]
[1743337621588,0.0004,83220.0,83219.0,2.68134069]
[1743337623593,0.0004,83220.0,83219.0,2.83134069]
[1743337623895,0.0004,83220.0,83219.0,2.8568071]
[1743337624093,0.0004,83220.0,83219.0,2.87183323]
[1743337624789,0.0004,83220.0,83219.0,2.87383323]
[1743337624988,0.0004,83220.0,83219.0,2.87583323]
[1743337626190,0.0004,83220.0,83219.0,3.3295015]
[1743337626700,0.0004,83220.0,83219.0,3.31447537]
[1743337626902,0.0934,83235.0,83219.0,3.31447537]
[1743337627102,0.0934,83235.0,83234.0,0.7216]
[1743337627303,0.0934,83235.0,83234.0,1.13346009]
[1743337627504,0.0934,83235.0,83234.0,2.63378424]
[1743337628722,0.0934,83235.0,83234.0,2.48441794]
[1743337628907,0.0934,83235.0,83234.0,2.60841794]
[1743337629507,0.0934,83235.0,83234.0,2.69837268]
[1743337629709,0.0934,83235.0,83234.0,2.82241268]
[1743337630011,0.20272933,83235.0,83234.0,2.69837268]
[1743337630212,0.20272933,83235.0,83234.0,2.82241268]
[1743337631721,0.20272933,83235.0,83234.0,2.82208465]
[1743337631920,0.20272933,83235.0,83234.0,2.80675373]
[1743337632422,0.20272933,83235.0,83234.0,2.34692]
[1743337634223,0.20272933,83235.0,83234.0,2.37902]
[1743337635815,0.0934,83235.0,83234.0,2.39433544]
[1743337636019,0.0934,83235.0,83234.0,2.60850017]
[1743337636213,0.0934,83235.0,83234.0,2.64170017]
[1743337637119,0.0934,83235.0,83234.0,2.60850017]
[1743337638229,0.0934,83235.0,83234.0,2.85416917]
[1743337639623,0.0934,83235.0,83234.0,2.49336917]
[1743337640327,0.0934,83235.0,83234.0,2.27920444]
[1743337640525,0.0934,83235.0,83234.0,2.27924283]
[1743337643821,0.0934,83235.0,83234.0,2.27860283]
[1743337644816,0.0934,83235.0,83234.0,2.30870283]
[1743337645413,0.0934,83235.0,83234.0,2.27860283]
[1743337645625,0.0934,83235.0,83234.0,2.27865209]
[1743337646531,0.20272933,83235.0,83234.0,2.27845209]
[1743337647027,0.20272933,83235.0,83234.0,3.07457144]
[1743337649134,0.20272933,83235.0,83234.0,3.09002641]
[1743337649832,0.20272933,83235.0,83234.0,2.27850397]
[1743337650027,0.20272933,83235.0,83234.0,2.03283497]
[1743337650235,0.20272933,83235.0,83234.0,1.67203497]
[1743337650419,0.20272933,83235.0,83234.0,2.03283497]
[1743337651121,0.20272933,83235.0,83234.0,2.03251497]
[1743337653532,0.20272933,83235.0,83234.0,2.03246668]
[1743337653737,0.20272933,83235.0,83234.0,1.90962668]
[1743337653923,0.20272933,83235.0,83234.0,2.03218668]
[1743337654421,0.20272933,83235.0,83234.0,1.87752668]
[1743337654621,0.20272933,83235.0,83234.0,2.00004668]
[1743337654825,0.20272933,83235.0,83234.0,1.87752668]
[1743337655037,0.20272933,83235.0,83234.0,1.90962668]
[1743337656030,0.20272933,83235.0,83234.0,1.86212]
[1743337657536,0.20272933,83235.0,83234.0,1.89322]
[1743337658126,0.20272933,83235.0,83234.0,1.86212]
[1743337658937,0.20272933,83235.0,83234.0,0.36212]
[1743337659532,0.20272933,83235.0,83234.0,0.37412]
[1743337660136,0.20272933,83235.0,83234.0,0.37312]
[1743337660335,0.20272933,83235.0,83234.0,0.37212]
[1743337661131,0.20272933,83235.0,83232.0,1.78715055]
[1743337661132,0.4542,83235.0,83232.0,0.27332122]
[1743337661339,0.4542,83235.0,83233.0,0.21528288]
[1743337661638,0.45512,83235.0,83233.0,0.21624288]
[1743337661822,0.46739082,83235.0,83233.0,0.21632288]
[1743337662536,0.61739082,83235.0,83233.0,0.21632288]
[1743337662737,0.12014321,83234.0,83233.0,0.21624288]
[1743337663039,0.11602322,83234.0,83233.0,0.21624288]
[1743337663231,0.33132322,83234.0,83233.0,0.21824288]
[1743337663631,0.33132322,83234.0,83233.0,0.22024288]
[1743337663839,0.33132322,83234.0,83233.0,0.21824288]
[1743337664339,0.33132322,83234.0,83233.0,0.21624288]
[1743337664543,0.33232322,83234.0,83233.0,0.21624288]
[1743337665239,0.33232322,83234.0,83233.0,0.00096]
[1743337665437,0.06818001,83234.0,83230.0,8e-05]
[1743337666638,0.06718001,83234.0,83230.0,0.00108]
[1743337667139,0.06618001,83234.0,83231.0,1.533]
[1743337667339,0.06618001,83234.0,83231.0,1.53388]
[1743337668044,0.0653,83234.0,83231.0,1.53388]
[1743337668235,0.0653,83234.0,83231.0,0.03388]
[1743337668442,0.06594,83234.0,83231.0,0.033]
[1743337668740,0.06594,83234.0,83232.0,1.5]
[1743337668932,0.0653,83234.0,83232.0,1.50088]
[1743337669241,0.0653,83234.0,83233.0,0.0618]
[1743337669535,0.0653,83234.0,83233.0,0.03138]
[1743337670742,0.06598,83234.0,83233.0,0.0305]
[1743337670931,0.06598,83234.0,83233.0,0.0315]
[1743337671130,0.0653,83234.0,83233.0,0.03238]
[1743337671938,0.0326,83234.0,83233.0,0.03238]
[1743337672242,0.0326,83234.0,83233.0,0.03338]
[1743337672542,0.0326,83234.0,83233.0,0.03238]
[1743337672737,0.0326,83234.0,83233.0,0.03138]
[1743337673039,0.0326,83234.0,83233.0,0.03438]
[1743337673228,0.0326,83234.0,83233.0,0.03738]
[1743337673635,0.0326,83234.0,83233.0,0.03538]
[1743337674240,0.03332,83234.0,83233.0,0.0315]
[1743337674445,0.03332,83234.0,83233.0,0.0345]
[1743337674642,0.06652,83234.0,83233.0,0.0345]
[1743337675332,0.06652,83234.0,83233.0,0.0335]
[1743337675642,0.06652,83234.0,83233.0,0.0365]
[1743337676135,0.06652,83234.0,83233.0,0.0335]
[1743337676340,0.06652,83234.0,83233.0,0.0365]
[1743337676540,0.06652,83234.0,83233.0,0.0375]
[1743337676939,0.06652,83234.0,83233.0,0.0335]
[1743337677136,0.03332,83234.0,83233.0,0.0365]
[1743337677342,0.0326,83234.0,83233.0,0.0365]
[1743337677543,0.0658,83234.0,83233.0,0.0365]
[1743337677738,0.06644,83234.0,83233.0,0.0365]
[1743337678743,0.06644,83234.0,83233.0,0.0345]
[1743337679334,0.06644,83234.0,83233.0,0.0325]
[1743337679530,0.06644,83234.0,83233.0,0.0345]
[1743337680347,0.06644,83234.0,83233.0,0.0325]
[1743337685149,0.06644,83234.0,83233.0,0.0315]
[1743337685448,0.06644,83234.0,83233.0,0.0345]
[1743337685747,0.03324,83234.0,83233.0,0.0345]
[1743337686049,0.03324,83234.0,83233.0,0.0365]
[1743337686443,0.03324,83234.0,83233.0,0.0681]
[1743337687749,0.06524,83234.0,83233.0,0.0681]
[1743337688147,0.06524,83234.0,83233.0,0.06898]
[1743337688844,0.0646,83234.0,83233.0,0.06898]
[1743337689149,0.03348001,83234.0,83233.0,0.06898]
[1743337690247,0.00088001,83234.0,83233.0,0.06898]
[1743337690749,0.00088001,83234.0,83233.0,1.56898]
[1743337691050,0.3612,83236.0,83233.0,1.56898]
[1743337692452,0.0004,83236.0,83235.0,0.3608]
[1743337692649,0.0004,83236.0,83235.0,0.36168]
[1743337693743,0.0004,83236.0,83235.0,1.86468]
[1743337695249,0.0004,83236.0,83235.0,1.86768]
[1743337699344,0.0004,83236.0,83235.0,0.47568933]
[1743337699561,0.0004,83236.0,83235.0,0.59656933]
[1743337699853,0.0004,83236.0,83235.0,2.09656933]
[1743337701257,0.0004,83236.0,83235.0,1.97568933]
[1743337701456,0.0004,83236.0,83235.0,2.09648933]
[1743337702342,0.0004,83236.0,83235.0,2.09348933]
[1743337702554,0.0004,83236.0,83235.0,2.09748933]
[1743337702858,0.0004,83236.0,83235.0,2.09848933]
[1743337704652,0.0004,83236.0,83235.0,1.99048]
[1743337705550,0.17981047,83262.0,83235.0,1.99048]
[1743337705751,0.18069048,83262.0,83259.0,0.3608]
[1743337705955,0.17981047,83262.0,83260.0,0.2171]
[1743337706158,0.18069048,83262.0,83260.0,0.21798]
[1743337706354,0.18069048,83262.0,83260.0,1.71798]
[1743337706558,0.17981047,83262.0,83260.0,1.71798]
[1743337708652,0.18281047,83262.0,83260.0,1.72992541]
[1743337709054,0.0314,83261.0,83260.0,1.72992541]
[1743337710270,0.0314,83261.0,83260.0,0.22992541]
[1743337711149,0.0314,83261.0,83260.0,0.59072541]
[1743337712167,0.0314,83261.0,83260.0,0.59272541]
[1743337712362,0.0314,83261.0,83260.0,0.59472541]
[1743337712755,0.0314,83261.0,83260.0,0.59272541]
[1743337712952,0.0314,83261.0,83260.0,0.59472541]
[1743337713358,0.0314,83261.0,83260.0,0.47412541]
[1743337713658,0.0314,83261.0,83260.0,0.59440541]
[1743337716468,0.0004,83268.0,83260.0,0.59440541]
[1743337716665,0.00136001,83268.0,83260.0,0.59440541]
[1743337717167,0.0333,83267.0,83260.0,0.59440541]
[1743337717372,0.0333,83267.0,83261.0,1.8608]
[1743337717671,0.0333,83267.0,83261.0,1.86176]
[1743337718872,0.0333,83267.0,83261.0,1.86376]
[1743337720569,0.0333,83267.0,83261.0,1.86576]
[1743337721270,0.0333,83267.0,83261.0,0.36576]
[1743337721271,0.0605,83266.0,83261.0,0.36576]
[1743337721573,0.06138001,83266.0,83261.0,0.36576]
[1743337721776,0.0331,83265.0,83261.0,0.36576]
[1743337721967,0.03398001,83265.0,83261.0,0.36576]
[1743337722169,0.0298,83264.0,83261.0,0.39836]
[1743337722474,0.03072,83264.0,83261.0,0.39836]
[1743337722674,0.0331,83263.0,83261.0,0.39836]
[1743337722864,0.03374,83263.0,83261.0,0.39836]
[1743337723066,0.0298,83262.0,83261.0,0.39836]
[1743337723266,0.03048,83262.0,83261.0,0.39836]
[1743337724073,0.03048,83262.0,83261.0,0.36576]
[1743337724266,0.03048,83262.0,83261.0,0.00296]
[1743337724463,0.03048,83262.0,83261.0,0.004]
[1743337725774,0.03048,83262.0,83261.0,0.0345]
[1743337726968,0.03048,83262.0,83261.0,0.0325]
[1743337727165,0.03048,83262.0,83261.0,0.004]
[1743337727365,0.1506164,83262.0,83261.0,0.004]
[1743337728780,0.1181378,83261.0,83260.0,8e-05]
[1743337729075,0.1181378,83261.0,83252.0,8e-05]
[1743337729076,0.1201508,83252.0,83251.0,0.15168]
[1743337729276,0.12103081,83252.0,83251.0,0.15256]
[1743337729594,0.12103081,83252.0,83251.0,0.03308]
[1743337729872,0.1201523,83251.0,83250.0,8e-05]
[1743337730079,0.18383231,83251.0,83250.0,0.00096]
[1743337730377,0.18183231,83251.0,83250.0,0.1211137]
[1743337730580,0.18183231,83251.0,83250.0,0.1512137]
[1743337730878,0.18183231,83251.0,83250.0,0.1511337]
[1743337731274,0.18183231,83251.0,83250.0,0.1531337]
[1743337731783,0.54263231,83251.0,83250.0,0.1531337]
[1743337732267,0.47983231,83251.0,83250.0,0.3051337]
[1743337732474,0.00088001,83251.0,83250.0,0.2206337]
[1743337732678,0.3239736,83263.0,83262.0,0.1201364]
[1743337732872,0.3246136,83263.0,83262.0,1.6204]
[1743337733274,0.3246136,83263.0,83262.0,0.2405364]
[1743337733475,0.3246136,83263.0,83262.0,0.1851164]
[1743337733673,0.3246136,83263.0,83262.0,0.1845]
[1743337733883,0.3854136,83263.0,83262.0,1.8046364]
[1743337734470,0.3854136,83263.0,83262.0,0.3046364]
[1743337734875,0.3874136,83263.0,83262.0,0.3046364]
[1743337735075,0.3904136,83263.0,83262.0,0.3046364]
[1743337735273,0.0968076,83263.0,83262.0,0.3046364]
[1743337735478,0.0650676,83263.0,83262.0,0.3046364]
[1743337736180,0.005,83263.0,83262.0,0.3046364]
[1743337739184,0.1251349,83263.0,83262.0,0.1851164]
[1743337739375,0.1251349,83263.0,83262.0,0.3044764]
[1743337739689,0.1261349,83263.0,83262.0,0.3044764]
[1743337741983,0.1261349,83263.0,83262.0,0.1851164]
[1743337742184,0.1261349,83263.0,83262.0,0.3043164]
[1743337742892,0.1261349,83263.0,83262.0,0.3357164]
[1743337744095,0.006,83263.0,83262.0,0.3357164]
[1743337744599,0.005,83263.0,83262.0,0.3357164]
[1743337745195,0.00564,83263.0,83262.0,0.3357164]
[1743337746092,0.1257749,83263.0,83262.0,0.3357164]
[1743337746392,0.1568749,83263.0,83262.0,0.3357164]
[1743337751898,0.03674,83263.0,83262.0,0.3357164]
[1743337752112,0.00592,83263.0,83262.0,0.3357164]
[1743337752400,0.005,83263.0,83262.0,0.3357164]
[1743337752701,0.005,83263.0,83262.0,0.6965164]
[1743337752903,0.005,83263.0,83262.0,2.1965164]
[1743337753994,0.004,83263.0,83262.0,2.1965164]
[1743337754792,0.002,83263.0,83262.0,2.1965164]
[1743337755104,0.002,83263.0,83262.0,1.8357164]
[1743337755297,0.002,83263.0,83262.0,0.6965164]
[1743337755800,0.002,83263.0,83262.0,2.1965164]
[1743337758800,0.002,83263.0,83262.0,2.0773164]
[1743337759105,0.002,83263.0,83262.0,2.1956364]
[1743337761691,0.002,83263.0,83262.0,1.8348364]
[1743337761894,0.002,83263.0,83262.0,2.1956364]
[1743337762103,0.002,83263.0,83262.0,1.8348364]
[1743337762306,0.002,83263.0,83262.0,2.1956364]
[1743337767203,0.002,83263.0,83262.0,2.48160499]
[1743337767806,0.002,83263.0,83262.0,2.12080499]
[1743337768003,0.002,83263.0,83262.0,2.48160499]
[1743337770009,0.002,83263.0,83262.0,2.1956364]
[1743337770806,0.002,83263.0,83262.0,1.8348364]
[1743337771005,0.002,83263.0,83262.0,2.1956364]
[1743337772715,0.002,83263.0,83262.0,1.8348364]
[1743337773117,0.002,83263.0,83262.0,2.1956364]
[1743337773309,0.002,83263.0,83262.0,1.8348364]
[1743337773616,0.002,83263.0,83262.0,2.1956364]
[1743337773818,0.002,83263.0,83262.0,1.8348364]
[1743337774309,0.002,83263.0,83262.0,2.1956364]
[1743337776103,0.002,83263.0,83262.0,1.8348364]
[1743337776504,0.002,83263.0,83262.0,2.1956364]
[1743337782310,0.002,83263.0,83262.0,2.48160499]
[1743337786122,0.002,83263.0,83262.0,2.12080499]
[1743337786315,0.002,83263.0,83262.0,2.84240499]
[1743337786719,0.002,83263.0,83262.0,2.5564364]
[1743337793532,0.002,83263.0,83262.0,2.5250364]
[1743337794222,0.0352,83263.0,83262.0,2.5250364]
[1743337796826,0.0352,83263.0,83262.0,2.5233964]
[1743337799426,0.0352,83263.0,83262.0,1.8017964]
[1743337799633,0.0352,83263.0,83262.0,2.5233964]
[1743337800443,0.0352,83263.0,83262.0,1.8017964]
[1743337800634,0.0352,83263.0,83262.0,2.5233964]
[1743337800942,0.0352,83263.0,83262.0,2.88033762]
[1743337801343,0.0352,83263.0,83262.0,2.15873762]
[1743337801533,0.0352,83263.0,83262.0,2.88033762]
[1743337803346,0.0004,83268.0,83267.0,0.1201292]
[1743337803535,0.0004,83268.0,83267.0,0.1210092]
[1743337804043,0.0004,83268.0,83267.0,1.6210092]
[1743337804241,0.0004,83268.0,83267.0,1.6531092]
[1743337806545,0.0004,83268.0,83267.0,1.6837092]
[1743337807641,0.0004,83268.0,83267.0,1.69270838]
[1743337807945,0.0004,83268.0,83267.0,2.13253902]
[1743337808445,0.0004,83268.0,83267.0,2.37820802]
[1743337808849,0.0318,83276.0,83275.0,0.1201176]
[1743337809042,0.0318,83276.0,83275.0,0.5982776]
[1743337809642,0.0318,83276.0,83275.0,0.6611776]
[1743337811446,0.0318,83276.0,83275.0,0.6610576]
[1743337811642,0.0318,83276.0,83275.0,2.1610576]
[1743337812448,0.0318,83276.0,83275.0,2.5218576]
[1743337813351,0.0318,83276.0,83275.0,2.5220176]
[1743337814953,0.0318,83276.0,83275.0,2.1612176]
[1743337816052,0.0318,83276.0,83275.0,1.8004176]
[1743337816358,0.0318,83276.0,83275.0,2.1612176]
[1743337818160,0.0318,83276.0,83275.0,2.44746381]
[1743337821357,0.0318,83276.0,83275.0,2.80826381]
[1743337821559,0.0318,83276.0,83275.0,2.5220176]
[1743337822053,0.0318,83276.0,83275.0,1.8004176]
[1743337822248,0.0318,83276.0,83275.0,2.5220176]
[1743337822447,0.0318,83276.0,83275.0,1.6838976]
[1743337822644,0.0318,83276.0,83275.0,2.5217776]
[1743337823543,0.0318,83276.0,83275.0,2.4911976]
[1743337823750,0.0318,83276.0,83275.0,2.3425976]
[1743337823949,0.1519162,83276.0,83275.0,0.11772]
[1743337824158,0.15279621,83276.0,83275.0,0.01792]
[1743337824351,0.15279621,83276.0,83275.0,0.01856]
[1743337824555,0.15279621,83276.0,83275.0,0.1386776]
[1743337824759,0.15279621,83276.0,83275.0,0.01856]
[1743337825155,0.15279621,83276.0,83275.0,0.00064]
[1743337825457,0.15279621,83276.0,83275.0,0.1207576]
[1743337827465,0.17829621,83276.0,83275.0,0.1207576]
[1743337828763,0.17829621,83276.0,83275.0,1.6207576]
[1743337829067,0.1774162,83276.0,83275.0,1.6207576]
[1743337829459,0.5382162,83276.0,83275.0,1.50064]
[1743337829660,0.5388562,83276.0,83275.0,1.50064]
[1743337829866,0.5388562,83276.0,83275.0,0.00064]
[1743337830961,0.1201176,83275.0,83274.0,8e-05]
[1743337831163,0.1201176,83275.0,83269.0,0.11688]
[1743337831164,0.1201248,83271.0,83270.0,0.1201242]
[1743337831360,0.1208048,83271.0,83270.0,0.1208042]
[1743337831558,0.1836048,83271.0,83270.0,0.1208042]
[1743337831956,0.1836048,83271.0,83270.0,0.00068]
[1743337833165,0.1201292,83267.0,83266.0,0.00376]
[1743337833358,0.1207692,83267.0,83266.0,0.0044]
[1743337833759,0.1462692,83267.0,83266.0,0.0044]
[1743337834072,0.2094692,83267.0,83266.0,0.0044]
[1743337834868,0.2104692,83267.0,83266.0,0.0044]
[1743337835665,0.2104692,83267.0,83266.0,0.00376]
[1743337838073,0.5712692,83267.0,83266.0,0.00376]
[1743337838971,0.58301822,83267.0,83266.0,0.00376]
[1743337841069,0.58301822,83267.0,83266.0,0.03686]
[1743337843269,0.73301822,83267.0,83266.0,0.00376]
[1743337843467,0.58301822,83267.0,83266.0,0.00376]
[1743337844278,0.73301822,83267.0,83266.0,0.00376]
[1743337844482,0.58301822,83267.0,83266.0,0.00376]
[1743337844974,0.58301822,83267.0,83266.0,0.03616]
[1743337846067,0.58301822,83267.0,83266.0,0.06816]
[1743337846272,0.73301822,83267.0,83266.0,0.06816]
[1743337846470,0.58301822,83267.0,83266.0,0.06816]
[1743337847273,0.1201306,83266.0,83259.0,0.00018019]
[1743337847477,0.1201436,83257.0,83256.0,8e-05]
[1743337847680,0.1208236,83257.0,83256.0,0.06448]
[1743337847981,0.1208236,83257.0,83256.0,0.0644]
[1743337848369,0.1845236,83257.0,83256.0,0.0644]
[1743337849472,0.3345236,83257.0,83256.0,0.0644]
[1743337849672,0.3355236,83257.0,83256.0,0.0644]
[1743337850479,0.3365236,83257.0,83256.0,0.0644]
[1743337851373,0.3385236,83257.0,83256.0,0.0644]
[1743337853087,0.1268236,83257.0,83256.0,0.0644]
[1743337854188,0.1268236,83257.0,83256.0,0.06504]
[1743337854888,0.1268236,83257.0,83256.0,0.0644]
[1743337855785,0.1268236,83257.0,83256.0,0.06504]
[1743337856172,0.1268236,83257.0,83256.0,0.185185]
[1743337856376,0.1268236,83257.0,83256.0,0.06504]
[1743337856576,0.1268236,83257.0,83256.0,0.0644]
[1743337856978,0.13882795,83257.0,83256.0,0.0644]
[1743337857882,0.13882795,83257.0,83256.0,0.06512]
[1743337858286,0.13882795,83257.0,83256.0,0.184545]
[1743337860887,0.13882795,83257.0,83256.0,0.185185]
[1743337861190,0.13882795,83257.0,83256.0,0.184545]
[1743337861689,0.13882795,83257.0,83256.0,0.185185]
[1743337868780,0.28265936,83257.0,83256.0,0.185185]
[1743337870690,0.15051141,83257.0,83256.0,0.185185]
[1743337870991,0.17981047,83263.0,83262.0,0.1201364]
[1743337871189,0.13071047,83263.0,83262.0,0.1209364]
[1743337871387,0.13071047,83263.0,83262.0,1.6209364]
[1743337871580,0.12991047,83263.0,83262.0,1.6209364]
[1743337871985,0.21529128,83265.0,83264.0,0.1201335]
[1743337872185,0.21529128,83265.0,83264.0,0.2377335]
[1743337872586,0.33622338,83265.0,83264.0,0.2377335]
[1743337872986,0.33622338,83265.0,83264.0,0.1210135]
[1743337873187,0.33622338,83265.0,83264.0,0.2377735]
[1743337873384,0.34122338,83265.0,83264.0,0.1210135]
[1743337873578,0.34522338,83265.0,83264.0,0.1210135]
[1743337874192,0.22509128,83265.0,83264.0,0.1822135]
[1743337874381,0.22509128,83265.0,83264.0,0.2128135]
[1743337874996,0.0098,83265.0,83264.0,0.2128135]
[1743337875187,0.009,83265.0,83264.0,0.2128135]
[1743337875796,0.009,83265.0,83264.0,0.5736135]
[1743337884906,0.009,83265.0,83264.0,0.2128135]
[1743337885096,0.009,83265.0,83264.0,0.5736135]
[1743337889494,0.009,83265.0,83264.0,0.2128135]
[1743337889696,0.009,83265.0,83264.0,0.5736135]
[1743337892196,0.1291321,83265.0,83264.0,0.06208]
[1743337892392,0.1291321,83265.0,83264.0,0.1520135]
[1743337892694,0.1299721,83265.0,83264.0,0.00088]
[1743337892898,0.120145,83256.0,83255.0,0.21489047]
[1743337893103,0.481825,83256.0,83255.0,0.33575697]
[1743337893307,0.36168,83256.0,83255.0,0.33575697]
[1743337893504,0.00088,83256.0,83255.0,0.33575697]
[1743337893998,0.0647,83256.0,83255.0,0.39935697]
[1743337894194,0.0655,83256.0,83255.0,0.39935697]
[1743337894399,0.0675,83256.0,83255.0,0.39935697]
[1743337895200,0.0667,83256.0,83255.0,0.39935697]
[1743337895401,0.0687,83256.0,83255.0,0.39935697]
[1743337896097,0.004,83256.0,83255.0,0.39935697]
[1743337896299,0.004,83256.0,83255.0,1.00582597]
[1743337896704,0.004,83256.0,83255.0,2.50582597]
[1743337896912,0.004,83256.0,83255.0,2.2910155]
[1743337900011,0.004,83256.0,83255.0,2.73863313]
[1743337901015,0.0645,83276.0,83270.0,0.1201248]
[1743337901217,0.0318,83276.0,83270.0,0.2371648]
[1743337901511,0.00089901,83271.0,83270.0,0.2379648]
[1743337901709,0.00089901,83271.0,83270.0,1.7379648]
[1743337901915,0.00017901,83271.0,83270.0,1.7994648]
[1743337902314,0.00417901,83271.0,83270.0,1.7994648]
[1743337906413,0.00417901,83271.0,83270.0,1.7992248]
[1743337907234,0.00417901,83271.0,83270.0,1.6513248]
[1743337907517,0.48510241,83271.0,83270.0,0.0008]
[1743337907708,0.48510241,83271.0,83268.0,0.21471735]
[1743337907709,0.1201263,83269.0,83268.0,0.16481735]
[1743337907910,0.1208063,83269.0,83268.0,0.16545735]
[1743337908110,0.4816063,83269.0,83268.0,0.16545735]
[1743337908721,0.49383881,83269.0,83268.0,0.06565735]
[1743337908916,0.49583881,83269.0,83268.0,0.00064]
[1743337909112,0.1201277,83268.0,83267.0,8e-05]
[1743337909318,0.1531077,83268.0,83267.0,8e-05]
[1743337909514,0.1531077,83268.0,83267.0,0.1202092]
[1743337910720,0.5159077,83268.0,83267.0,0.1202092]
[1743337910920,0.5159077,83268.0,83267.0,8e-05]
[1743337912024,0.5406077,83268.0,83267.0,8e-05]